bitfinex/quotes_BTCUSD_20250709
["timestamp","ask_amount","ask_price","bid_price","bid_amount"]
[1752050175325,1.03314593,108940.0,108930.0,0.02465927]
[1752050175509,1.17246593,108940.0,108930.0,0.02465927]
[1752050177945,1.17246593,108940.0,108930.0,0.02465941]
[1752050178802,1.03314593,108940.0,108930.0,0.02465941]
[1752050179093,1.17246593,108940.0,108930.0,0.02465941]
[1752050192838,1.17246593,108940.0,108930.0,0.02465599]
[1752050194323,1.51246593,108940.0,108930.0,0.02465599]
[1752050194541,1.83065417,108940.0,108930.0,0.02465599]
[1752050195650,1.83065417,108940.0,108930.0,0.02365599]
[1752050195852,1.83165417,108940.0,108930.0,0.02365465]
[1752050196763,1.83365417,108940.0,108930.0,0.02365465]
[1752050196990,1.83265417,108940.0,108930.0,0.02365465]
[1752050197165,1.83065417,108940.0,108930.0,0.02365465]
[1752050197370,1.83565417,108940.0,108930.0,0.02365465]
[1752050198625,1.86343839,108940.0,108930.0,0.02365465]
[1752050198826,2.197096,108940.0,108930.0,0.02365465]
[1752050199038,2.23845216,108940.0,108930.0,0.0144631]
[1752050199285,2.20844194,108940.0,108930.0,0.0144631]
[1752050199485,2.16708578,108940.0,108930.0,0.00527155]
[1752050199905,1.13612634,108930.0,108920.0,0.002]
[1752050200110,1.4582802,108930.0,108920.0,0.002]
[1752050201215,1.4592802,108930.0,108920.0,0.002]
[1752050201621,1.4612802,108930.0,108920.0,0.002]
[1752050202024,1.15763281,108930.0,108920.0,0.002]
[1752050204820,1.18522981,108930.0,108920.0,0.002]
[1752050215545,1.52522981,108930.0,108920.0,0.002]
[1752050217904,1.84341805,108930.0,108920.0,0.002]
[1752050218400,0.85463668,108910.0,108900.0,0.002]
[1752050218623,1.17679054,108910.0,108900.0,0.00848586]
[1752050219279,1.20439154,108910.0,108900.0,0.00848586]
[1752050219915,1.20539154,108910.0,108900.0,0.00848586]
[1752050220125,1.20539154,108910.0,108900.0,0.0256558]
[1752050220273,1.21460738,108910.0,108900.0,0.0256558]
[1752050233391,1.21460738,108910.0,108900.0,0.02567839]
[1752050236343,1.21460738,108910.0,108900.0,0.02568059]
[1752050240638,1.55460738,108910.0,108900.0,0.02568059]
[1752050242466,1.55460738,108910.0,108900.0,0.02570261]
[1752050247944,1.55456738,108910.0,108900.0,0.02570261]
[1752050251262,1.55456738,108910.0,108900.0,0.02571765]
[1752050251475,1.52376738,108910.0,108900.0,0.02571765]
[1752050253786,1.55496738,108910.0,108900.0,0.02571765]
[1752050260057,1.55496738,108910.0,108900.0,0.00204666]
[1752050260267,1.55496738,108910.0,108900.0,0.02572359]
[1752050262697,1.55496738,108910.0,108900.0,0.02572378]
[1752050263064,1.55496738,108910.0,108900.0,0.02572427]
[1752050266408,1.52376738,108910.0,108900.0,0.02572427]
[1752050267089,1.52376738,108910.0,108900.0,0.02572626]
[1752050269208,1.52376738,108910.0,108900.0,0.00850473]
[1752050269419,1.52376738,108910.0,108900.0,0.02572792]
[1752050277894,1.52376738,108910.0,108900.0,0.00204666]
[1752050278280,1.52376738,108910.0,108900.0,0.02573342]
[1752050283531,0.98944306,108910.0,108900.0,0.02573342]
[1752050283740,1.12860306,108910.0,108900.0,0.05783342]
[1752050284390,0.98944306,108910.0,108900.0,0.05783342]
[1752050284594,0.78860306,108910.0,108900.0,0.05783342]
[1752050284766,0.37897789,108910.0,108900.0,0.05783342]
[1752050284999,0.68262528,108910.0,108900.0,0.05783342]
[1752050285184,1.02262528,108910.0,108900.0,0.05783342]
[1752050285743,1.02262528,108910.0,108900.0,0.05780467]
[1752050288630,1.02262528,108910.0,108900.0,0.04059884]
[1752050288842,1.11406221,108910.0,108900.0,0.05779237]
[1752050294777,1.11406221,108910.0,108900.0,0.05778352]
[1752050295985,1.08646121,108910.0,108900.0,0.05778352]
[1752050300658,1.08646121,108910.0,108900.0,0.05777338]
[1752050306487,1.08646121,108910.0,108900.0,0.05777582]
[1752050312059,0.94730121,108910.0,108900.0,0.24143054]
[1752050312295,0.99494428,108910.0,108900.0,0.2506131]
[1752050312512,0.99494428,108910.0,108900.0,0.25063615]
[1752050313064,0.68211542,108910.0,108900.0,0.05779887]
[1752050313284,0.98576281,108910.0,108900.0,0.25063632]
[1752050313460,0.98576281,108910.0,108900.0,0.0669816]
[1752050313926,0.98576281,108910.0,108900.0,0.05779887]
[1752050314129,1.05338051,108910.0,108900.0,0.05779887]
[1752050315617,1.05338051,108910.0,108900.0,0.05781022]
[1752050317700,1.05338051,108910.0,108900.0,0.24146494]
[1752050317910,1.05338051,108910.0,108900.0,0.25983032]
[1752050318446,1.05338051,108910.0,108900.0,0.25337288]
[1752050318650,1.05338051,108910.0,108900.0,0.25983035]
[1752050320039,0.98576281,108910.0,108900.0,0.05781025]
[1752050320960,0.98576281,108910.0,108900.0,0.04221025]
[1752050321580,0.98576281,108910.0,108900.0,0.04222327]
[1752050322611,0.84668281,108910.0,108900.0,0.04222327]
[1752050322767,0.98576281,108910.0,108900.0,0.06058865]
[1752050324149,0.54303542,108910.0,108900.0,0.2597432]
[1752050324363,0.98576281,108910.0,108900.0,0.2597432]
[1752050324535,0.98576281,108910.0,108900.0,0.25056034]
[1752050324953,0.98576281,108910.0,108900.0,0.25974299]
[1752050325153,0.98576281,108910.0,108900.0,0.26892555]
[1752050325562,0.98576281,108910.0,108900.0,0.27810803]
[1752050327402,0.98576281,108910.0,108900.0,0.2781063]
[1752050327724,0.84668281,108910.0,108900.0,0.2781063]
[1752050327926,0.35939705,108910.0,108900.0,0.59093549]
[1752050328266,0.01018121,108910.0,108900.0,0.59093549]
[1752050328771,0.14004,108910.0,108900.0,0.59093549]
[1752050328942,0.15840251,108910.0,108900.0,0.59093549]
[1752050329150,0.14922113,108910.0,108900.0,0.59093549]
[1752050329357,0.15840243,108910.0,108900.0,0.59093549]
[1752050329983,0.1675839,108910.0,108900.0,0.59093549]
[1752050330332,0.1665839,108910.0,108900.0,0.64584409]
[1752050330535,0.1665839,108910.0,108900.0,0.64684409]
[1752050330824,0.1665839,108910.0,108900.0,0.64784409]
[1752050331012,0.15740243,108910.0,108900.0,0.64684409]
[1752050331170,0.1665839,108910.0,108900.0,0.64584409]
[1752050331394,0.1665839,108910.0,108900.0,0.64884409]
[1752050331619,0.1665839,108910.0,108900.0,0.65084409]
[1752050332969,0.16658398,108910.0,108900.0,0.65084409]
[1752050333141,0.1757657,108910.0,108900.0,0.65084409]
[1752050333338,0.0367257,108910.0,108900.0,0.65082653]
[1752050333553,0.1757657,108910.0,108900.0,0.65082653]
[1752050333951,0.1757657,108910.0,108900.0,0.34717914]
[1752050336436,0.1757657,108910.0,108900.0,0.34717049]
[1752050337037,0.1757657,108910.0,108900.0,0.65081788]
[1752050339252,0.16658398,108910.0,108900.0,0.65081788]
[1752050339446,0.1757657,108910.0,108900.0,0.65081788]
[1752050339901,0.1757657,108910.0,108900.0,0.34717049]
[1752050341454,0.1757657,108910.0,108900.0,0.34716934]
[1752050342803,0.47941309,108910.0,108900.0,0.34716934]
[1752050343539,0.48859489,108910.0,108900.0,0.34716934]
[1752050344584,0.48859565,108910.0,108900.0,0.34716934]
[1752050345338,0.47941376,108910.0,108900.0,0.34716934]
[1752050345907,0.48859565,108910.0,108900.0,0.32997317]
[1752050346665,0.48859565,108910.0,108900.0,0.31447317]
[1752050347990,0.67223351,108910.0,108900.0,0.30529103]
[1752050348193,0.65387066,108910.0,108900.0,0.19714879]
[1752050348432,0.64468894,108910.0,108900.0,0.21551417]
[1752050348600,0.67618894,108910.0,108900.0,0.21551417]
[1752050349365,0.66700714,108910.0,108900.0,0.01349407]
[1752050350132,0.66700714,108910.0,108900.0,0.00849407]
[1752050350476,0.66700714,108910.0,108900.0,0.00949552]
[1752050351673,0.66700714,108910.0,108900.0,0.01049552]
[1752050354804,0.66700714,108910.0,108900.0,0.00404666]
[1752050355012,0.66700714,108910.0,108900.0,0.01049709]
[1752050358983,0.66700714,108910.0,108900.0,0.00404666]
[1752050359181,0.66700714,108910.0,108900.0,0.02770023]
[1752050359606,0.66700714,108910.0,108900.0,0.02770015]
[1752050364313,0.66700714,108910.0,108900.0,0.02769833]
[1752050366922,0.7186019,108910.0,108900.0,0.02769833]
[1752050368329,1.0586019,108910.0,108900.0,0.02769833]
[1752050369199,1.46822707,108910.0,108900.0,0.02769833]
[1752050370142,1.46822707,108910.0,108900.0,0.02769616]
[1752050370408,0.86093229,108910.0,108900.0,0.02769616]
[1752050370634,1.46822707,108910.0,108900.0,0.02769616]
[1752050371094,1.16457968,108910.0,108900.0,0.02769616]
[1752050371990,1.46822707,108910.0,108900.0,0.02769616]
[1752050373593,1.46822707,108910.0,108900.0,0.02669616]
[1752050374082,1.46922707,108910.0,108900.0,0.02669616]
[1752050376172,1.46922707,108910.0,108900.0,0.02669556]
[1752050376866,1.46922707,108910.0,108900.0,0.02569556]
[1752050377134,1.47022707,108910.0,108900.0,0.02569556]
[1752050377570,1.47022707,108910.0,108900.0,0.00849596]
[1752050378964,1.47022707,108910.0,108900.0,0.00204666]
[1752050379182,1.47022707,108910.0,108900.0,0.00849436]
[1752050385553,1.47022707,108910.0,108900.0,0.0256818]
[1752050389899,1.47022707,108910.0,108900.0,0.00849436]
[1752050391085,1.29178931,108910.0,108900.0,0.00849436]
[1752050391304,0.37877813,108910.0,108900.0,0.22314908]
[1752050391520,0.17768511,108910.0,108900.0,0.85799104]
[1752050391747,0.18686683,108910.0,108900.0,0.55434365]
[1752050392168,0.18686683,108910.0,108900.0,0.25069626]
[1752050392382,0.18686683,108910.0,108900.0,0.55434365]
[1752050392589,0.18686683,108910.0,108900.0,0.57152021]
[1752050393073,0.1868675,108910.0,108900.0,0.57152021]
[1752050393279,0.49051489,108910.0,108900.0,0.26787282]
[1752050393688,0.1868675,108910.0,108900.0,0.26787282]
[1752050393904,0.49051489,108910.0,108900.0,0.26787282]
[1752050394123,0.49051557,108910.0,108900.0,0.26787282]
[1752050394361,0.49047557,108910.0,108900.0,0.26787282]
[1752050394795,0.49047557,108910.0,108900.0,0.27705522]
[1752050395199,0.49047557,108910.0,108900.0,0.26787299]
[1752050395380,0.49047557,108910.0,108900.0,0.27705522]
[1752050395526,0.66493213,108910.0,108900.0,0.27705522]
[1752050396919,0.66493213,108910.0,108900.0,0.26787299]
[1752050397543,0.66493213,108910.0,108900.0,0.309076]
[1752050400459,0.65575066,108910.0,108900.0,0.309076]
[1752050400778,0.64656894,108910.0,108900.0,0.29989369]
[1752050400971,0.64656894,108910.0,108900.0,0.29988236]
[1752050401586,0.64656894,108910.0,108900.0,0.30906467]
[1752050401794,0.64656894,108910.0,108900.0,0.29988236]
[1752050402294,0.64656894,108910.0,108900.0,0.25869068]
[1752050403858,0.46293066,108910.0,108900.0,0.26787282]
[1752050404103,0.48129376,108910.0,108900.0,0.26787282]
[1752050404628,0.48129376,108910.0,108900.0,0.25869068]
[1752050404972,0.48129376,108910.0,108900.0,0.26787299]
[1752050405176,0.48129376,108910.0,108900.0,0.25869068]
[1752050405585,0.65575032,108910.0,108900.0,0.25869068]
[1752050407942,0.35210293,108910.0,108900.0,0.25869068]
[1752050408146,0.65575032,108910.0,108900.0,0.25869068]
[1752050409077,0.65575032,108910.0,108900.0,0.26787299]
[1752050410574,0.65575032,108910.0,108900.0,0.24424873]
[1752050410776,0.65575032,108910.0,108900.0,0.26784037]
[1752050412085,0.47211246,108910.0,108900.0,0.27702251]
[1752050412363,0.46289066,108910.0,108900.0,0.27702251]
[1752050412992,0.46289024,108910.0,108900.0,0.27702251]
[1752050413212,0.47207196,108910.0,108900.0,0.25986495]
[1752050413412,0.47207196,108910.0,108900.0,0.30105663]
[1752050414344,0.47207196,108910.0,108900.0,0.29462255]
[1752050415520,0.45370869,108910.0,108900.0,0.29462255]
[1752050415737,0.46289024,108910.0,108900.0,0.29462255]
[1752050415996,0.47207196,108910.0,108900.0,0.29462255]
[1752050417342,0.46289024,108910.0,108900.0,0.29462255]
[1752050418061,0.46289024,108910.0,108900.0,0.27922255]
[1752050418300,0.46289024,108910.0,108900.0,0.29432255]
[1752050419369,0.47207196,108910.0,108900.0,0.29432255]
[1752050419621,0.47207188,108910.0,108900.0,0.29432255]
[1752050420262,0.47207188,108910.0,108900.0,0.34923471]
[1752050420695,0.46289024,108910.0,108900.0,0.34923471]
[1752050421358,0.46289024,108910.0,108900.0,0.30804303]
[1752050422754,0.46289016,108910.0,108900.0,0.30804303]
[1752050422961,0.46289016,108910.0,108900.0,0.29294303]
[1752050423171,0.47207171,108910.0,108900.0,0.29294303]
[1752050423850,0.46289016,108910.0,108900.0,0.29294303]
[1752050424107,0.45370869,108910.0,108900.0,0.29294303]
[1752050428210,0.46289024,108910.0,108900.0,0.30028383]
[1752050428417,0.45370869,108910.0,108900.0,0.30946597]
[1752050428659,0.46289016,108910.0,108900.0,0.30946597]
[1752050430009,0.4720718,108910.0,108900.0,0.30946606]
[1752050430213,0.46289016,108910.0,108900.0,0.3186482]
[1752050430508,0.45370869,108910.0,108900.0,0.3186482]
[1752050430879,0.46289016,108910.0,108900.0,0.3186482]
[1752050431533,0.46289007,108910.0,108900.0,0.3186482]
[1752050431745,0.51385326,108910.0,108900.0,0.30946606]
[1752050432944,0.51385318,108910.0,108900.0,0.3186482]
[1752050434771,0.51385318,108910.0,108900.0,0.30946606]
[1752050435270,0.51385318,108910.0,108900.0,0.30946614]
[1752050435504,0.5230349,108910.0,108900.0,0.30946614]
[1752050435698,0.5230349,108910.0,108900.0,0.31864837]
[1752050436747,0.51385309,108910.0,108900.0,0.32783051]
[1752050437613,0.50467154,108910.0,108900.0,0.32783051]
[1752050437879,0.47207154,108910.0,108900.0,0.32783051]
[1752050439613,0.47203154,108910.0,108900.0,0.32783051]
[1752050439833,0.14084,108910.0,108900.0,0.32783051]
[1752050440046,0.4536686,108910.0,108900.0,0.32783051]
[1752050440716,0.47203145,108910.0,108900.0,0.32783051]
[1752050440921,0.47203137,108910.0,108900.0,0.32783051]
[1752050441138,0.33319128,108910.0,108900.0,0.32783051]
[1752050441359,0.4536686,108910.0,108900.0,0.35943051]
[1752050445308,0.3148286,108910.0,108900.0,0.35943051]
[1752050445508,0.4536686,108910.0,108900.0,0.35943051]
[1752050445713,0.4628499,108910.0,108900.0,0.32783051]
[1752050446592,0.4628499,108910.0,108900.0,0.34363051]
[1752050447134,0.4536686,108910.0,108900.0,0.34363051]
[1752050448203,0.4536686,108910.0,108900.0,0.32783051]
[1752050450391,0.4536686,108910.0,108900.0,0.34383051]
[1752050451601,0.4536686,108910.0,108900.0,0.32783051]
[1752050453519,0.4536686,108910.0,108900.0,0.33428206]
[1752050453720,0.3148286,108910.0,108900.0,0.33428206]
[1752050453971,0.4536686,108910.0,108900.0,0.33428206]
[1752050454774,0.4628499,108910.0,108900.0,0.33428206]
[1752050454973,0.3240099,108910.0,108900.0,0.33428206]
[1752050455177,0.4628499,108910.0,108900.0,0.35148636]
[1752050455584,0.47203137,108910.0,108900.0,0.35148636]
[1752050455802,0.4628499,108910.0,108900.0,0.35148636]
[1752050456030,0.47203137,108910.0,108900.0,0.35148636]
[1752050456315,0.4628499,108910.0,108900.0,0.35148636]
[1752050456940,0.47203128,108910.0,108900.0,0.35148636]
[1752050458858,0.4628499,108910.0,108900.0,0.35148636]
[1752050459839,0.47203128,108910.0,108900.0,0.35148636]
[1752050460999,0.48121292,108910.0,108900.0,0.34230422]
[1752050461216,1.50999353,108910.0,108900.0,0.12191992]
[1752050461429,1.50999353,108910.0,108900.0,0.06700776]
[1752050461679,1.50999353,108910.0,108900.0,0.02570251]
[1752050461889,1.37115353,108910.0,108900.0,0.20935723]
[1752050462094,1.50999353,108910.0,108900.0,0.20935723]
[1752050462313,1.45541278,108910.0,108900.0,0.20935723]
[1752050463330,1.45541278,108910.0,108900.0,0.02570251]
[1752050463738,1.31657278,108910.0,108900.0,0.02570251]
[1752050463950,1.45541278,108910.0,108900.0,0.02570251]
[1752050464371,1.24320232,108910.0,108900.0,0.02570251]
[1752050465975,1.24320232,108910.0,108900.0,0.20935723]
[1752050466825,1.23402068,108910.0,108900.0,0.20935723]
[1752050467224,1.09518068,108910.0,108900.0,0.20935723]
[1752050467436,1.23402068,108910.0,108900.0,0.20935723]
[1752050469306,1.53766807,108910.0,108900.0,0.20935723]
[1752050469535,1.39882807,108910.0,108900.0,0.20935723]
[1752050469738,1.53766807,108910.0,108900.0,0.20935723]
[1752050470628,1.39882807,108910.0,108900.0,0.20935723]
[1752050470843,1.53766807,108910.0,108900.0,0.20935723]
[1752050471186,1.14258375,108910.0,108900.0,0.20935723]
[1752050471393,0.96812736,108910.0,108900.0,0.21853988]
[1752050471777,1.15176522,108910.0,108900.0,0.20935723]
[1752050471991,1.15176522,108910.0,108900.0,0.21853996]
[1752050472427,1.15176522,108910.0,108900.0,0.22772261]
[1752050473262,1.15176522,108910.0,108900.0,0.21853996]
[1752050473842,1.15176522,108910.0,108900.0,0.22772261]
[1752050474178,1.15176522,108910.0,108900.0,0.22771686]
[1752050474377,1.01292522,108910.0,108900.0,0.22771686]
[1752050474579,1.15176522,108910.0,108900.0,0.21853421]
[1752050474789,1.15176522,108910.0,108900.0,0.20935148]
[1752050475445,1.15176522,108910.0,108900.0,0.20935146]
[1752050476615,1.15176522,108910.0,108900.0,0.21853419]
[1752050477485,1.15176522,108910.0,108900.0,0.21853411]
[1752050477717,1.15176522,108910.0,108900.0,0.21853419]
[1752050478652,1.14258375,108910.0,108900.0,0.20935146]
[1752050479009,1.14258375,108910.0,108900.0,0.21853419]
[1752050479010,1.00374375,108910.0,108900.0,0.21853419]
[1752050479324,1.14258375,108910.0,108900.0,0.21853419]
[1752050480272,1.14258375,108910.0,108900.0,0.20935205]
[1752050480494,1.14258375,108910.0,108900.0,0.21853478]
[1752050481321,1.14258375,108910.0,108900.0,0.22771743]
[1752050481523,1.14258375,108910.0,108900.0,0.21853478]
[1752050481729,1.14258375,108910.0,108900.0,0.20935205]
[1752050482024,1.14258375,108910.0,108900.0,0.21853478]
[1752050483077,1.14258375,108910.0,108900.0,0.22771743]
[1752050483291,1.14258375,108910.0,108900.0,0.21853478]
[1752050483604,0.83893636,108910.0,108900.0,0.21853478]
[1752050483734,1.14258375,108910.0,108900.0,0.21853478]
[1752050483947,1.14258375,108910.0,108900.0,0.22771743]
[1752050484228,1.14258375,108910.0,108900.0,0.21853478]
[1752050484476,1.14258375,108910.0,108900.0,0.22771743]
[1752050484754,1.00374375,108910.0,108900.0,0.21853478]
[1752050484973,1.14258375,108910.0,108900.0,0.21853478]
[1752050485611,1.14258375,108910.0,108900.0,0.20935205]
[1752050485986,1.14258375,108910.0,108900.0,0.22771726]
[1752050486986,1.14258375,108910.0,108900.0,0.23689974]
[1752050487150,1.00374375,108910.0,108900.0,0.21853478]
[1752050487351,1.14258375,108910.0,108900.0,0.21853478]
[1752050488252,1.14258375,108910.0,108900.0,0.20935205]
[1752050488674,1.14258375,108910.0,108900.0,0.21853478]
[1752050488917,1.14258375,108910.0,108900.0,0.22771743]
[1752050489633,1.14258375,108910.0,108900.0,0.21853478]
[1752050491473,1.14258375,108910.0,108900.0,0.22771743]
[1752050491922,1.14258375,108910.0,108900.0,0.22127106]
[1752050492127,1.14258375,108910.0,108900.0,0.22772597]
[1752050492328,1.00374375,108910.0,108900.0,0.22772597]
[1752050492610,1.14258375,108910.0,108900.0,0.22772597]
[1752050492959,1.14258375,108910.0,108900.0,0.21854332]
[1752050493384,1.14258375,108910.0,108900.0,0.22772597]
[1752050494849,1.00374375,108910.0,108900.0,0.22772597]
[1752050495059,1.14254375,108910.0,108900.0,0.22772593]
[1752050495675,1.14254375,108910.0,108900.0,0.20936055]
[1752050495876,1.14254375,108910.0,108900.0,0.21854328]
[1752050496030,1.00374375,108910.0,108900.0,0.21854328]
[1752050496244,1.14254375,108910.0,108900.0,0.21854328]
[1752050496450,1.14254375,108910.0,108900.0,0.20936055]
[1752050497680,1.14254375,108910.0,108900.0,0.21854328]
[1752050498011,1.14254375,108910.0,108900.0,0.21854324]
[1752050499548,1.14254375,108910.0,108900.0,0.22772589]
[1752050499964,1.14254375,108910.0,108900.0,0.21854324]
[1752050500380,1.14254375,108910.0,108900.0,0.22772589]
[1752050500797,1.14254375,108910.0,108900.0,0.21854324]
[1752050501083,1.14254375,108910.0,108900.0,0.22772589]
[1752050501680,1.14254375,108910.0,108900.0,0.21854324]
[1752050501894,1.14254375,108910.0,108900.0,0.22772589]
[1752050502753,1.14254375,108910.0,108900.0,0.21854324]
[1752050503174,1.14254375,108910.0,108900.0,0.22772589]
[1752050503505,1.00374375,108910.0,108900.0,0.22772589]
[1752050503709,1.14254375,108910.0,108900.0,0.21854324]
[1752050505657,1.14254375,108910.0,108900.0,0.22772589]
[1752050506422,1.14254375,108910.0,108900.0,0.21854324]
[1752050506858,1.14254375,108910.0,108900.0,0.23691734]
[1752050507137,0.97726925,108910.0,108900.0,0.24609982]
[1752050507626,0.97726925,108910.0,108900.0,0.23691734]
[1752050509185,0.97726925,108910.0,108900.0,0.24609982]
[1752050509407,1.06870618,108910.0,108900.0,0.23691734]
[1752050509850,1.06870618,108910.0,108900.0,0.23691766]
[1752050510282,1.25234404,108910.0,108900.0,0.21855245]
[1752050511263,1.24316257,108910.0,108900.0,0.20936972]
[1752050513805,1.15172564,108910.0,108900.0,0.21855245]
[1752050514512,1.15172564,108910.0,108900.0,0.20936972]
[1752050515667,1.15172564,108910.0,108900.0,0.21855382]
[1752050515881,1.15172564,108910.0,108900.0,0.21855389]
[1752050517778,1.15172564,108910.0,108900.0,0.20937116]
[1752050518217,1.15172564,108910.0,108900.0,0.21855389]
[1752050518611,1.15172564,108910.0,108900.0,0.21855379]
[1752050519449,1.15172564,108910.0,108900.0,0.20937106]
[1752050520081,1.15172564,108910.0,108900.0,0.21855379]
[1752050522136,1.15172564,108910.0,108900.0,0.22773644]
[1752050522591,1.15172564,108910.0,108900.0,0.236919]
[1752050522808,1.15172564,108910.0,108900.0,0.22773644]
[1752050524565,1.15172564,108910.0,108900.0,0.236919]
[1752050525467,1.15172564,108910.0,108900.0,0.22773644]
[1752050526103,1.15172564,108910.0,108900.0,0.236919]
[1752050526245,1.15172564,108910.0,108900.0,0.22773644]
[1752050526455,1.15172564,108910.0,108900.0,0.22773703]
[1752050527322,1.15172564,108910.0,108900.0,0.23691959]
[1752050528498,1.24316257,108910.0,108900.0,0.23691959]
[1752050528704,1.24316257,108910.0,108900.0,0.21855438]
[1752050528916,1.24316257,108910.0,108900.0,0.22773703]
[1752050530040,1.15172564,108910.0,108900.0,0.21855438]
[1752050530257,1.15172564,108910.0,108900.0,0.20937165]
[1752050530783,1.15172564,108910.0,108900.0,0.21855438]
[1752050531497,1.15172564,108910.0,108900.0,0.22773703]
[1752050531633,1.15172564,108910.0,108900.0,0.21855438]
[1752050533783,1.15172564,108910.0,108900.0,0.20937165]
[1752050534258,1.15172564,108910.0,108900.0,0.21855438]
[1752050535009,1.01292564,108910.0,108900.0,0.23691959]
[1752050535124,1.15168564,108910.0,108900.0,0.22773703]
[1752050536139,1.15168564,108910.0,108900.0,0.20937165]
[1752050536470,1.15168564,108910.0,108900.0,0.21855438]
[1752050537270,1.01292564,108910.0,108900.0,0.21855438]
[1752050537525,1.15168564,108910.0,108900.0,0.21855438]
[1752050537875,1.15168564,108910.0,108900.0,0.20937165]
[1752050538080,1.15168564,108910.0,108900.0,0.21855438]
[1752050538281,1.15168564,108910.0,108900.0,0.20937165]
[1752050539825,1.15168564,108910.0,108900.0,0.21855438]
[1752050540401,1.15168564,108910.0,108900.0,0.20937165]
[1752050542017,1.15168564,108910.0,108900.0,0.21855438]
[1752050544010,1.15168564,108910.0,108900.0,0.20937165]
[1752050544190,1.15168564,108910.0,108900.0,0.20937497]
[1752050544397,1.15168564,108910.0,108900.0,0.2185577]
[1752050544539,1.01292564,108910.0,108900.0,0.2185577]
[1752050544746,1.15168564,108910.0,108900.0,0.2185577]
[1752050545390,1.15168564,108910.0,108900.0,0.20937497]
[1752050545611,1.15168564,108910.0,108900.0,0.2185577]
[1752050545806,1.15168564,108910.0,108900.0,0.20937497]
[1752050546022,1.01292564,108910.0,108900.0,0.20937497]
[1752050546261,1.15168564,108910.0,108900.0,0.20937497]
[1752050546441,1.01292564,108910.0,108900.0,0.20937497]
[1752050546643,1.14250392,108910.0,108900.0,0.20937497]
[1752050549671,1.14250392,108910.0,108900.0,0.20937702]
[1752050549870,1.11080392,108910.0,108900.0,0.21855958]
[1752050550085,1.11080392,108910.0,108900.0,0.21855967]
[1752050551230,1.11080392,108910.0,108900.0,0.20937702]
[1752050551535,1.11080392,108910.0,108900.0,0.21855975]
[1752050552073,1.11080392,108910.0,108900.0,0.2277424]
[1752050552911,0.97204392,108910.0,108900.0,0.20134131]
[1752050553142,1.11080392,108910.0,108900.0,0.21856051]
[1752050553364,1.12640392,108910.0,108900.0,0.20937778]
[1752050554715,0.98764392,108910.0,108900.0,0.20937778]
[1752050554928,1.12640392,108910.0,108900.0,0.20937778]
[1752050555515,1.14140392,108910.0,108900.0,0.20937778]
[1752050556510,1.14140392,108910.0,108900.0,0.21856051]
[1752050556707,1.00264392,108910.0,108900.0,0.21856051]
[1752050556910,1.14140392,108910.0,108900.0,0.21856051]
[1752050557171,1.14140392,108910.0,108900.0,0.20937778]
[1752050558033,1.14136392,108910.0,108900.0,0.20937778]
[1752050558575,1.13218203,108910.0,108900.0,0.20937778]
[1752050562155,0.99346203,108910.0,108900.0,0.21856051]
[1752050562370,1.13218203,108910.0,108900.0,0.20937778]
[1752050562920,0.82853464,108910.0,108900.0,0.20937778]
[1752050563460,1.13218203,108910.0,108900.0,0.20937778]
[1752050565474,1.17650042,108910.0,108900.0,0.20937778]
[1752050566364,1.13218203,108910.0,108900.0,0.20937778]
[1752050567707,1.13218203,108910.0,108900.0,0.20937774]
[1752050570568,1.13218203,108910.0,108900.0,0.20937777]
[1752050571795,1.10158203,108910.0,108900.0,0.20937777]
[1752050573495,1.10158203,108910.0,108900.0,0.2093772]
[1752050576378,1.10158203,108910.0,108900.0,0.20937694]
[1752050576987,0.96286203,108910.0,108900.0,0.20937694]
[1752050577198,1.10158203,108910.0,108900.0,0.20937694]
[1752050578068,1.11076392,108910.0,108900.0,0.21855967]
[1752050578276,0.93630719,108910.0,108900.0,0.22774223]
[1752050578480,0.94548891,108910.0,108900.0,0.21855967]
[1752050578672,0.94548891,108910.0,108900.0,0.22774223]
[1752050578880,1.12912677,108910.0,108900.0,0.22774232]
[1752050579485,1.12912677,108910.0,108900.0,0.23692488]
[1752050579814,1.12912677,108910.0,108900.0,0.24610736]
[1752050580022,1.12912677,108910.0,108900.0,0.23692488]
[1752050580532,1.11994539,108910.0,108900.0,0.21855967]
[1752050580773,1.11994539,108910.0,108900.0,0.22774223]
[1752050581111,1.11994539,108910.0,108900.0,0.22774232]
[1752050581323,1.11994539,108910.0,108900.0,0.20937694]
[1752050581977,1.11994539,108910.0,108900.0,0.21855967]
[1752050582946,1.11994539,108910.0,108900.0,0.20937694]
[1752050584363,0.98122539,108910.0,108900.0,0.20937694]
[1752050584551,1.11994539,108910.0,108900.0,0.21855967]
[1752050584696,1.13525115,108910.0,108900.0,0.22774232]
[1752050584898,1.11076375,108910.0,108900.0,0.21855967]
[1752050585577,1.10158203,108910.0,108900.0,0.21855967]
[1752050587462,1.10154203,108910.0,108900.0,0.22774232]
[1752050587817,0.96286203,108910.0,108900.0,0.21855967]
[1752050588192,1.10154203,108910.0,108900.0,0.21855967]
[1752050589741,0.96286203,108910.0,108900.0,0.21855967]
[1752050590174,0.65921464,108910.0,108900.0,0.22774053]
[1752050590354,1.10154203,108910.0,108900.0,0.22774053]
[1752050591619,0.96286203,108910.0,108900.0,0.22774053]
[1752050591973,1.10154203,108910.0,108900.0,0.22774053]
[1752050593154,1.10154203,108910.0,108900.0,0.21855788]
[1752050593357,1.10154203,108910.0,108900.0,0.22774053]
[1752050593952,0.96286203,108910.0,108900.0,0.22774053]
[1752050594702,0.96286203,108910.0,108900.0,0.21855788]
[1752050594920,0.96286203,108910.0,108900.0,0.02572043]
[1752050595143,1.10154203,108910.0,108900.0,0.02572043]
[1752050595352,1.13344203,108910.0,108900.0,0.02572043]
[1752050595904,1.13344203,108910.0,108900.0,0.00850314]
[1752050596118,1.13344203,108910.0,108900.0,0.02572091]
[1752050597347,0.99476203,108910.0,108900.0,0.02572091]
[1752050597556,1.13344203,108910.0,108900.0,0.02572091]
[1752050598615,0.99476203,108910.0,108900.0,0.02572091]
[1752050598822,1.13344203,108910.0,108900.0,0.02572091]
[1752050598963,0.99476203,108910.0,108900.0,0.02572091]
[1752050599171,1.13344203,108910.0,108900.0,0.02572091]
[1752050603410,1.11684203,108910.0,108900.0,0.02572091]
[1752050603945,1.10154203,108910.0,108900.0,0.02572091]
[1752050606980,0.96286203,108910.0,108900.0,0.02572091]
[1752050607182,1.10154203,108910.0,108900.0,0.02572091]
[1752050608166,0.96286203,108910.0,108900.0,0.02572091]
[1752050608372,1.10154203,108910.0,108900.0,0.02572091]
[1752050609760,1.10150203,108910.0,108900.0,0.02572091]
[1752050610193,1.10150203,108910.0,108900.0,0.00850314]
[1752050610841,1.10150203,108910.0,108900.0,0.00204666]
[1752050612213,1.10150203,108910.0,108900.0,0.01122939]
[1752050612461,1.10150203,108910.0,108900.0,0.00204666]
[1752050614376,0.96286203,108910.0,108900.0,0.00204666]
[1752050614601,1.10150203,108910.0,108900.0,0.00204666]
[1752050614803,1.10150203,108910.0,108900.0,0.02572395]
[1752050615288,0.96286203,108910.0,108900.0,0.02572395]
[1752050615447,1.10150203,108910.0,108900.0,0.02572395]
[1752050615878,0.96286203,108910.0,108900.0,0.02572395]
[1752050616075,1.10150203,108910.0,108900.0,0.02572395]